bitfinex-derivatives/quotes_SOLF0:USTF0_20241120
["timestamp","ask_amount","ask_price","bid_price","bid_amount"]
[1732115864721,32.13407948,236.45,236.28,2.1036]
[1732115864918,32.13407948,236.45,236.28,6.6237]
[1732115865111,34.44497948,236.49,236.29,32.91045345]
[1732115865311,34.44497948,236.49,236.3,0.77637397]
[1732115865514,36.55677948,236.49,236.3,0.77637397]
[1732115865720,34.44497948,236.49,236.3,0.77637397]
[1732115867514,2.56318079,236.63,236.37,32.13407948]
[1732115867515,32.13407948,236.57,236.37,32.13407948]
[1732115867715,32.13407948,236.57,236.38,3.72]
[1732115868017,4.5701,236.59,236.41,32.13407948]
[1732115868225,32.13407948,236.61,236.42,6.6314]
[1732115868625,32.13407948,236.61,236.43,0.77591646]
[1732115868820,0.46666,236.63,236.45,32.13407948]
[1732115869024,0.46666,236.63,236.46,4.49585575]
[1732115869214,0.46666,236.63,236.46,3.72]
[1732115870220,32.13407948,236.61,236.46,3.72]
[1732115871320,2.1108,236.6,236.46,3.72]
[1732115871921,0.46666,236.63,236.48,32.13407948]
[1732115873520,32.13407948,236.62,236.44,32.13407948]
[1732115873925,2.1107,236.61,236.44,32.13407948]
[1732115874224,32.13407948,236.62,236.42,6.6314]
[1732115874412,2.122,236.61,236.42,6.6314]
[1732115874613,2.1111,236.56,236.42,6.6314]
[1732115875016,2.122,236.61,236.42,6.6314]
[1732115875818,0.46666,236.63,236.48,32.13407948]
[1732115876522,0.46666,236.63,236.44,32.13407948]
[1732115876923,2.1107,236.61,236.44,32.13407948]
[1732115877123,32.13407948,236.5,236.31,17.58064098]
[1732115877323,32.13407948,236.5,236.34,2.3018]
[1732115877520,2.1117,236.49,236.35,0.77613072]
[1732115877726,32.13407948,236.5,236.36,0.77614584]
[1732115877916,32.13407948,236.5,236.35,0.77614584]
[1732115878121,32.13407948,236.5,236.36,0.77615553]
[1732115878316,32.13407948,236.5,236.34,2.3018]
[1732115878519,32.13407948,236.5,236.35,0.77614348]
[1732115878728,19.76474001,236.5,236.35,0.77614348]
[1732115879224,2.3077,236.59,236.35,0.77614348]
[1732115879225,19.76474001,236.54,236.35,0.77614348]
[1732115879617,19.76474001,236.58,236.37,19.76474001]
[1732115879821,19.76474001,236.58,236.38,0.77614348]
[1732115880022,19.76474001,236.58,236.38,2.93142428]
[1732115880324,19.76474001,236.58,236.39,0.77614348]
[1732115880527,19.76474001,236.62,236.41,19.76474001]
[1732115880724,2.1112,236.55,236.37,19.76474001]
[1732115881025,19.76474001,236.58,236.38,0.77600559]
[1732115881223,21.87534001,236.62,236.41,19.76474001]
[1732115881524,19.76474001,236.62,236.41,19.76474001]
[1732115881825,19.76474001,236.62,236.41,21.82413669]
[1732115882128,19.76474001,236.66,236.45,19.76474001]
[1732115882318,19.76474001,236.66,236.46,4.6383]
[1732115882520,21.87504001,236.66,236.46,9.77312545]
[1732115882723,24.35254001,236.7,236.49,19.76474001]
[1732115883118,24.35254001,236.7,236.5,0.77575322]
[1732115883320,24.35254001,236.7,236.46,8.99725744]
[1732115883321,19.76474001,236.66,236.46,8.99725744]
[1732115883625,2.1104,236.64,236.47,0.77576707]
[1732115883823,2.1104,236.64,236.46,8.99725744]
[1732115884124,2.1104,236.64,236.47,0.77582414]
[1732115884319,2.1104,236.64,236.46,8.99725744]
[1732115884727,19.76474001,236.66,236.46,8.99725744]
[1732115884917,2.1105,236.63,236.46,8.99725744]
[1732115885121,19.76474001,236.66,236.46,6.837]
[1732115885335,19.76474001,236.66,236.46,8.96006887]
[1732115886021,4.5878,236.7,236.46,8.96006887]
[1732115886022,19.76474001,236.62,236.46,6.837]
[1732115886617,2.1108,236.6,236.46,6.837]
[1732115886921,4.5878,236.7,236.49,19.76474001]
[1732115887118,24.35254001,236.7,236.49,19.76474001]
[1732115887318,2.1101,236.68,236.49,19.76474001]
[1732115887525,24.35254001,236.7,236.49,19.76474001]
[1732115887721,2.1102,236.67,236.49,19.76474001]
[1732115887931,19.76474001,236.7,236.49,19.76474001]
[1732115888426,19.76474001,236.66,236.5,0.77568422]
[1732115888623,19.76474001,236.66,236.46,6.837]
[1732115888829,19.76474001,236.66,236.47,0.77572126]
[1732115889023,19.76474001,236.7,236.48,19.76474001]
[1732115889327,19.76474001,236.7,236.49,0.77572126]
[1732115889622,0.33298,236.75,236.49,0.77572126]
[1732115889623,0.33298,236.75,236.52,19.76474001]
[1732115889825,0.33298,236.75,236.53,0.77572126]
[1732115890627,0.33298,236.75,236.52,19.76474001]
[1732115890928,19.76474001,236.71,236.53,0.77555544]
[1732115891225,2.11,236.69,236.53,0.77555544]
[1732115891429,2.11,236.69,236.54,0.77555739]
[1732115891628,19.76474001,236.67,236.53,0.77555739]
[1732115891829,2.1105,236.64,236.46,26.60174001]
[1732115892022,19.76474001,236.71,236.5,19.76474001]
[1732115892223,19.76474001,236.71,236.51,0.77570696]
[1732115892622,0.33298,236.75,236.54,19.76474001]
[1732115892623,20.09772001,236.75,236.54,19.76474001]
[1732115893233,19.76474001,236.71,236.5,19.76474001]
[1732115893526,19.76474001,236.71,236.51,0.77556159]
[1732115893726,0.33298,236.75,236.54,19.76474001]
[1732115893930,0.33298,236.75,236.58,19.76474001]
[1732115894134,0.33298,236.75,236.59,7.54244779]
[1732115894432,2.44248,236.75,236.59,8.89423231]
[1732115894726,0.33298,236.75,236.59,8.89423231]
[1732115895435,2.1902,236.87,236.7,19.76474001]
[1732115895731,2.1902,236.87,236.71,4.5811]
[1732115895931,4.2986,236.87,236.71,4.5811]
[1732115896631,4.2986,236.87,236.62,25.58730162]
[1732115896632,19.76474001,236.85,236.62,25.58730162]
[1732115896832,19.76474001,236.8,236.63,5.30614987]
[1732115897022,19.76474001,236.84,236.66,19.76474001]
[1732115897229,2.1902,236.87,236.67,0.77514956]
[1732115897429,2.1902,236.87,236.7,19.76474001]
[1732115898328,2.1084,236.87,236.7,19.76474001]
[1732115898724,19.76474001,236.92,236.7,19.76474001]
[1732115898725,2.1085,236.86,236.7,19.76474001]
[1732115898927,19.76474001,236.92,236.7,19.76474001]
[1732115899424,2.1084,236.87,236.7,19.76474001]
[1732115899733,19.76474001,236.92,236.7,19.76474001]
[1732115899930,2.2763,236.93,236.74,19.76474001]
[1732115900133,2.2763,236.93,236.75,4.5519]
[1732115900331,2.1079,236.93,236.78,19.76474001]
[1732115900835,19.76474001,236.96,236.76,2.1558]
[1732115901131,2.1081,236.91,236.76,2.1558]
[1732115901333,19.76474001,236.96,236.76,2.1558]
[1732115902231,2.108,236.91,236.76,2.1558]
[1732115903230,19.76474001,236.94,236.76,2.1558]
[1732115903426,2.1079,236.92,236.76,2.1558]
[1732115903626,19.76474001,236.98,236.76,2.1558]
[1732115904031,19.76474001,236.94,236.76,2.1558]
[1732115905038,19.76474001,236.9,236.76,2.1558]
[1732115905238,2.1084,236.87,236.76,2.1558]
[1732115905539,19.76474001,236.9,236.76,2.1558]
[1732115906036,19.76474001,236.86,236.66,20.20689001]
[1732115906336,19.76474001,236.86,236.67,7.32612418]
[1732115906528,4.4092,236.89,236.68,0.77512418]
[1732115906934,19.76474001,236.94,236.68,0.77512418]
[1732115907235,19.76474001,236.94,236.74,19.76474001]
[1732115907431,19.76474001,236.94,236.74,21.8937611]
[1732115907636,2.1077,236.95,236.78,19.76474001]
[1732115907838,4.4092,236.97,236.79,6.6302]
[1732115908829,19.76474001,236.9,236.79,2.1903]
[1732115909241,2.108,236.91,236.79,2.1903]
[1732115909439,19.76474001,236.9,236.79,2.1903]
[1732115909738,2.108,236.91,236.79,2.1903]
[1732115909938,4.4092,236.97,236.79,2.1903]
[1732115910637,2.3029,236.97,236.8,2.1984]
[1732115910841,19.76474001,236.98,236.8,2.1984]
[1732115911840,2.108,236.91,236.8,2.1984]
[1732115912039,4.4809,236.97,236.8,2.1984]
[1732115912433,2.1075,236.96,236.8,2.1984]
[1732115912633,19.76474001,236.98,236.8,2.1984]
[1732115914341,2.1076,236.95,236.8,2.1984]
[1732115914834,4.4589,237.09,236.8,2.1984]
[1732115915138,2.1076,236.96,236.8,2.1984]
[1732115915341,19.76474001,237.0,236.8,2.1984]
[1732115915839,12.67,236.99,236.66,0.44215]
[1732115916034,19.76474001,236.75,236.66,0.44215]
[1732115916236,19.76474001,236.71,236.66,0.44215]
[1732115916933,2.1101,236.68,236.66,0.44215]
[1732115917430,4.4117,236.74,236.66,0.44215]
[1732115917836,2.11,236.69,236.66,0.44215]
[1732115918032,4.4117,236.74,236.66,0.44215]
[1732115919143,2.1101,236.68,236.66,0.44215]
[1732115919643,19.76474001,236.68,236.54,5.80072597]
[1732115919838,19.76474001,236.72,236.55,2.2413]
[1732115920048,21.87414001,236.76,236.57,19.76474001]
[1732115920239,19.76474001,236.8,236.57,19.76474001]
[1732115920440,19.76474001,236.8,236.61,19.76474001]
[1732115920738,2.109,236.8,236.62,2.302]
[1732115920947,22.08824001,236.84,236.62,2.302]
[1732115921143,2.1088,236.82,236.65,19.76474001]
[1732115921344,22.08824001,236.84,236.65,21.88630365]
[1732115921644,2.1087,236.84,236.69,19.76474001]
[1732115921838,2.1087,236.84,236.7,2.2413]
[1732115922245,2.1085,236.85,236.7,2.2413]
[1732115922545,19.76474001,236.88,236.69,2.09861803]
[1732115922546,19.76474001,236.76,236.69,2.09861803]
[1732115923444,19.76474001,236.72,236.57,2.3141]
[1732115923852,19.76474001,236.72,236.56,4.3492]
[1732115923853,2.1103,236.65,236.56,4.3492]
[1732115924152,2.1103,236.65,236.56,2.2019]
[1732115924541,2.1102,236.67,236.56,2.2019]
[1732115924740,2.1102,236.67,236.48,19.76474001]
[1732115924741,19.76474001,236.68,236.48,19.76474001]
[1732115924945,19.76474001,236.68,236.51,2.1907]
[1732115925142,19.76474001,236.72,236.52,19.76474001]
[1732115925348,1.9223,236.74,236.52,19.76474001]
[1732115925848,2.1099,236.7,236.52,19.76474001]
[1732115926548,1.9223,236.74,236.52,19.76474001]
[1732115926549,2.1102,236.67,236.52,19.76474001]
[1732115927043,19.76474001,236.72,236.52,19.76474001]
[1732115927247,19.76474001,236.68,236.51,2.1907]
[1732115927447,19.76474001,236.64,236.51,2.1907]
[1732115927652,2.1108,236.61,236.51,2.1907]
[1732115927848,19.76474001,236.64,236.51,2.1907]
[1732115928247,2.1109,236.59,236.51,2.1907]
[1732115928446,19.76474001,236.64,236.51,2.1907]
[1732115928647,1.9223,236.74,236.51,2.1907]
[1732115928648,19.76474001,236.68,236.51,2.1907]
[1732115928848,2.1105,236.63,236.51,2.1907]
[1732115929050,19.76474001,236.68,236.51,2.1907]
[1732115929250,2.1108,236.61,236.51,2.1907]
[1732115929548,19.76474001,236.68,236.51,2.1907]
[1732115929753,19.76474001,236.72,236.52,19.76474001]
[1732115929952,2.1103,236.65,236.52,19.76474001]
[1732115930250,19.76474001,236.72,236.52,19.76474001]
[1732115930450,19.76474001,236.72,236.51,2.1907]
[1732115930451,19.76474001,236.68,236.51,2.1907]
[1732115930650,2.1105,236.63,236.51,2.1907]
[1732115930957,19.76474001,236.68,236.51,2.1907]
[1732115931154,2.1107,236.61,236.51,2.1907]
[1732115931453,19.76474001,236.68,236.48,19.76474001]
[1732115931651,19.76474001,236.64,236.46,2.2856]
[1732115931851,2.337,236.63,236.45,24.57455297]
[1732115932757,19.76474001,236.6,236.45,24.57455297]
[1732115932949,1.9255,236.59,236.45,24.57455297]
[1732115933149,2.1114,236.54,236.45,24.57455297]
[1732115933349,2.1114,236.54,236.43,2.2501]
[1732115933350,1.9255,236.59,236.43,2.2501]
[1732115934251,1.9255,236.59,236.44,19.76474001]
[1732115935358,2.111,236.58,236.48,19.76474001]
[1732115935649,2.337,236.63,236.48,19.76474001]
[1732115936650,2.1108,236.6,236.48,19.76474001]
[1732115936856,2.337,236.63,236.48,19.76474001]
[1732115937155,2.337,236.63,236.52,19.76474001]
[1732115937350,2.1106,236.62,236.52,19.76474001]
[1732115937550,2.337,236.63,236.52,19.76474001]
[1732115937954,4.4475,236.63,236.52,19.76474001]
[1732115938457,2.337,236.63,236.52,19.76474001]
[1732115938653,26.41711667,236.75,236.52,19.76474001]
[1732115938959,2.11,236.69,236.56,19.76474001]
[1732115939161,4.2616,236.74,236.56,19.76474001]
[1732115939356,4.2616,236.74,236.57,2.3347]
[1732115940558,2.1101,236.68,236.57,2.3347]
[1732115940859,4.2616,236.74,236.57,2.3347]
[1732115941759,4.2616,236.74,236.59,19.76474001]
[1732115942157,19.76474001,236.83,236.63,19.76474001]
[1732115942461,2.2075,236.83,236.67,19.76474001]
[1732115943158,2.2075,236.83,236.68,4.4756]
[1732115943555,2.2075,236.83,236.69,2.1393]
[1732115944157,19.76474001,236.91,236.69,2.1393]
[1732115944460,21.90834001,236.91,236.69,2.1393]
[1732115944660,2.1089,236.81,236.69,2.1393]
[1732115944859,21.90834001,236.91,236.69,2.1393]
[1732115945054,19.76474001,236.87,236.69,2.1393]
[1732115945254,19.76474001,236.83,236.6,19.76474001]
[1732115946254,2.1095,236.75,236.6,19.76474001]
[1732115946453,19.76474001,236.83,236.6,19.76474001]
[1732115947655,21.85981354,236.88,236.6,19.76474001]
[1732115947656,19.76474001,236.79,236.6,19.76474001]
[1732115948063,2.1097,236.73,236.6,19.76474001]
[1732115948367,19.76474001,236.75,236.55,4.3823]
[1732115948558,1.9317,236.74,236.55,4.3823]
[1732115949058,2.1105,236.65,236.55,4.3823]
[1732115949559,1.9317,236.74,236.55,4.3823]
[1732115949758,2.1107,236.62,236.55,2.1393]
[1732115950060,19.76474001,236.71,236.55,2.1393]
[1732115950262,19.76474001,236.63,236.48,2.1709]
[1732115950463,2.3199,236.62,236.48,2.1709]
[1732115950659,2.3199,236.62,236.47,46.39152355]
[1732115950854,1.9296,236.61,236.47,46.39152355]
[1732115951255,2.3199,236.62,236.47,46.39152355]
[1732115951864,2.1111,236.57,236.47,46.39152355]
[1732115952060,2.3199,236.62,236.48,19.76474001]
[1732115952461,2.3199,236.62,236.47,46.39152355]
[1732115952965,1.9296,236.61,236.47,46.39152355]
[1732115953660,2.1116,236.51,236.47,46.39152355]
[1732115954161,19.76474001,236.59,236.36,21.98384001]
[1732115954365,2.1121,236.48,236.36,21.98384001]
[1732115954963,19.76474001,236.59,236.36,21.98384001]
[1732115955161,19.76474001,236.59,236.4,19.76474001]
[1732115955860,2.3199,236.62,236.44,19.76474001]
[1732115956066,2.1111,236.59,236.45,4.308]
[1732115956362,2.3199,236.62,236.48,19.76474001]
[1732115956563,2.1109,236.61,236.49,2.1557]
[1732115956767,19.76474001,236.67,236.49,2.1557]
[1732115957672,2.1109,236.62,236.49,2.1557]
[1732115958276,19.76474001,236.67,236.49,2.1557]
[1732115958277,2.1107,236.64,236.49,2.1557]
[1732115958477,2.2549,236.75,236.49,2.1557]
[1732115958478,19.76474001,236.71,236.49,2.1557]
[1732115958877,2.1107,236.63,236.49,2.1557]
[1732115959179,19.76474001,236.71,236.52,19.76474001]
[1732115959478,2.1104,236.67,236.52,19.76474001]
[1732115959677,2.1104,236.67,236.56,19.76474001]
[1732115959878,22.01964001,236.75,236.56,19.76474001]
[1732115960076,2.1102,236.69,236.57,2.3407]
[1732115960279,2.2549,236.75,236.6,19.76474001]
[1732115960581,2.2549,236.75,236.57,4.4458809]
[1732115960582,2.11,236.72,236.58,2.2337]
[1732115960779,2.11,236.72,236.6,19.76474001]
[1732115960982,19.76474001,236.79,236.58,2.2337]
[1732115961281,2.1103,236.68,236.58,2.2337]
[1732115961484,19.76474001,236.75,236.58,2.2337]
[1732115961779,19.76474001,236.79,236.58,2.2337]
[1732115962381,2.1101,236.7,236.58,2.2337]
[1732115962578,19.76474001,236.79,236.58,2.2337]
[1732115962777,19.76474001,236.79,236.6,19.76474001]
[1732115963576,2.1095,236.77,236.64,19.76474001]
[1732115963781,19.76474001,236.84,236.65,2.1876]
[1732115964477,2.312,236.86,236.65,2.1876]
[1732115964678,19.76474001,236.88,236.68,19.76474001]
[1732115964880,21.93654001,236.92,236.69,2.211]
[1732115965577,21.93654001,236.92,236.69,4.32391157]
[1732115965977,19.76474001,236.88,236.69,2.211]
[1732115966185,19.76474001,236.84,236.69,2.211]
[1732115966483,0.33987,236.8,236.69,2.211]
[1732115967083,0.33987,236.8,236.65,2.1876]
[1732115967483,2.1099,236.73,236.65,2.1876]
[1732115968080,2.1097,236.75,236.65,2.1876]
[1732115968881,2.1098,236.74,236.65,2.1876]
[1732115969985,2.11,236.71,236.65,2.1876]
[1732115970690,2.2311,236.79,236.65,2.1876]
[1732115971389,2.2311,236.79,236.59,2.3258]
[1732115971390,19.76474001,236.76,236.59,2.3258]
[1732115971592,19.76474001,236.76,236.59,4.4344]
[1732115971792,2.1104,236.68,236.59,4.4344]
[1732115972085,19.76474001,236.76,236.59,4.4344]
[1732115972487,2.1104,236.67,236.59,4.4344]
[1732115972687,19.76474001,236.76,236.59,4.4344]
[1732115973684,2.1104,236.67,236.59,4.4344]
[1732115974680,19.76474001,236.76,236.59,4.4344]
[1732115975582,2.1105,236.67,236.59,4.4344]
[1732115976088,2.2311,236.79,236.59,4.4344]
[1732115976089,2.1098,236.73,236.59,26.28837654]
[1732115976288,2.2311,236.79,236.59,24.19914001]
[1732115976688,2.1098,236.73,236.63,19.76474001]
[1732115977395,2.2311,236.79,236.63,19.76474001]
[1732115977897,2.1097,236.75,236.63,19.76474001]
[1732115978098,2.2311,236.79,236.63,19.76474001]
[1732115978799,2.11,236.72,236.63,19.76474001]
[1732115978992,2.2311,236.79,236.63,19.76474001]
[1732115979188,2.2311,236.79,236.59,4.4344]
[1732115979995,2.2311,236.79,236.62,19.76474001]
[1732115980392,19.76474001,236.81,236.62,19.76474001]
[1732115980602,19.76474001,236.85,236.66,19.76474001]
[1732115980813,2.1093,236.8,236.66,19.76474001]
[1732115980999,19.76474001,236.85,236.66,19.76474001]
[1732115982496,20.06249001,236.85,236.66,19.76474001]
[1732115983092,0.29775,236.85,236.7,19.76474001]
[1732115983291,0.29775,236.85,236.71,4.4982]
[1732115983497,0.29775,236.85,236.71,6.6509]
[1732115984401,2.1093,236.8,236.71,6.6509]
[1732115986003,0.29775,236.85,236.71,6.6509]
[1732115986404,20.06249001,236.85,236.71,6.6509]
[1732115986997,2.1095,236.78,236.71,6.6509]
[1732115987205,20.06249001,236.85,236.71,6.6509]
[1732115988302,0.29775,236.85,236.71,6.6509]
[1732115990002,20.06249001,236.85,236.71,6.6509]
[1732115990204,20.06249001,236.85,236.71,4.4982]
[1732115991103,2.1099,236.73,236.71,4.4982]
[1732115991302,19.76474001,236.81,236.67,2.088]
[1732115991497,19.76474001,236.81,236.62,19.76474001]
[1732115991704,2.1101,236.7,236.62,19.76474001]
[1732115993201,2.11,236.71,236.62,19.76474001]
[1732115993702,2.1099,236.73,236.62,19.76474001]
[1732115993906,19.76474001,236.81,236.62,19.76474001]
[1732115995404,2.1102,236.7,236.62,19.76474001]
[1732115995797,19.76474001,236.81,236.62,19.76474001]
[1732115996508,2.11,236.72,236.62,19.76474001]
[1732115996702,19.76474001,236.81,236.62,19.76474001]
[1732115997503,2.1104,236.67,236.59,2.182]
[1732115997807,21.8563689,236.81,236.59,2.182]
[1732115998004,2.1101,236.71,236.59,2.182]
[1732115998306,21.8563689,236.81,236.62,19.76474001]
[1732115998505,2.1103,236.69,236.62,19.76474001]
[1732115998706,21.8563689,236.81,236.62,19.76474001]
[1732115999106,2.1103,236.69,236.62,19.76474001]
[1732115999703,2.11,236.71,236.62,19.76474001]
[1732116000003,21.8563689,236.81,236.62,19.76474001]
[1732116000402,19.76474001,236.85,236.62,19.76474001]
[1732116001005,19.76474001,236.85,236.66,19.76474001]
[1732116001202,19.76474001,236.88,236.66,19.76474001]
[1732116001806,19.76474001,236.88,236.59,2.182]
[1732116001807,19.76474001,236.78,236.59,2.182]
[1732116002513,2.1105,236.67,236.59,2.182]
[1732116002705,19.76474001,236.74,236.59,2.182]
[1732116003008,19.76474001,236.7,236.58,2.157]
[1732116003204,19.76474001,236.7,236.5,2.1249]
[1732116003401,19.76474001,236.66,236.51,2.202]
[1732116004114,2.0904,236.65,236.51,2.202]
[1732116005110,19.76474001,236.62,236.42,5.82927155]
[1732116005306,19.76474001,236.58,236.43,2.1803]
[1732116005605,19.76474001,236.58,236.35,46.63417247]
[1732116005606,2.1122,236.47,236.33,7.96503719]
[1732116005811,19.76474001,236.53,236.38,4.2765]
[1732116006506,19.76474001,236.62,236.4,19.76474001]
[1732116006706,2.1114,236.56,236.4,19.76474001]
[1732116007012,19.76474001,236.62,236.4,19.76474001]
[1732116007312,2.1115,236.55,236.4,19.76474001]
[1732116007717,19.76474001,236.62,236.44,19.76474001]
[1732116008417,19.76474001,236.62,236.4,19.76474001]
[1732116008610,2.1114,236.56,236.4,19.76474001]
[1732116008810,19.76474001,236.62,236.4,19.76474001]
[1732116009117,19.76474001,236.54,236.38,4.2765]
[1732116009710,2.112,236.49,236.38,4.2765]
[1732116009906,19.76474001,236.54,236.38,4.2765]
[1732116010815,19.76474001,236.58,236.4,19.76474001]
[1732116011017,2.2876,236.61,236.4,19.76474001]
[1732116011207,19.76474001,236.55,236.38,4.2765]
[1732116011407,2.1121,236.49,236.38,4.2765]
[1732116011709,19.76474001,236.55,236.38,4.2765]
[1732116011914,2.1122,236.47,236.38,4.2765]
[1732116012815,19.76474001,236.47,236.38,4.2765]
[1732116013315,19.76474001,236.47,236.38,2.1803]
[1732116013509,19.76474001,236.47,236.34,2.1494]
[1732116013910,2.1127,236.41,236.34,2.1494]
[1732116014308,2.1129,236.39,236.34,2.1494]
[1732116014815,19.76474001,236.47,236.34,2.1494]
[1732116015010,19.76474001,236.43,236.28,4.4198]
[1732116015210,19.76474001,236.43,236.29,2.2839]
[1732116016020,2.1131,236.38,236.29,2.2839]
[1732116016209,19.76474001,236.43,236.29,2.2839]
[1732116016718,19.76474001,236.47,236.29,2.2839]
[1732116017512,19.76474001,236.43,236.29,2.2839]
[1732116017713,19.76474001,236.38,236.28,2.1782]
[1732116017911,19.76474001,236.38,236.21,2.0978]
[1732116018218,2.1137,236.3,236.19,2.2185]
[1732116018418,19.76474001,236.38,236.19,2.2185]
[1732116018419,2.1385,236.37,236.2,0.77663765]
[1732116018616,2.114,236.27,236.2,0.77663765]
[1732116018820,19.76474001,236.3,236.11,4.1687]
[1732116019018,19.76474001,236.34,236.14,19.76474001]
[1732116019315,2.1139,236.28,236.15,0.77665734]
[1732116019516,2.1385,236.37,236.15,0.77665734]
[1732116019517,19.76474001,236.34,236.15,0.77665734]
[1732116019713,2.1141,236.26,236.15,0.77665734]
[1732116019919,19.76474001,236.34,236.15,0.77665734]
[1732116020418,2.114,236.27,236.15,0.77665734]
[1732116020621,19.76474001,236.34,236.15,0.77665734]
[1732116020914,19.76474001,236.3,236.15,0.77665734]
[1732116021124,19.76474001,236.3,236.12,2.2684]
[1732116021321,2.1141,236.26,236.12,2.2684]
[1732116021514,19.76474001,236.34,236.14,19.76474001]
[1732116021716,19.76474001,236.34,236.15,0.77677001]
[1732116021914,19.76474001,236.3,236.12,2.2684]
[1732116022512,19.76474001,236.3,236.13,0.77677323]
[1732116022915,2.1145,236.21,236.13,0.77677323]
[1732116023115,19.76474001,236.3,236.13,0.77677323]
[1732116023518,2.1144,236.22,236.13,0.77677323]
[1732116023827,19.76474001,236.3,236.13,0.77677323]
[1732116024120,19.76474001,236.26,236.12,2.2684]
[1732116024322,2.1147,236.19,236.12,2.2684]
[1732116024920,19.76474001,236.26,236.12,2.2684]
[1732116025320,2.2322,236.25,236.12,2.2684]
[1732116025521,2.2322,236.25,236.05,4.5378]
[1732116025823,2.2322,236.25,236.06,3.06492098]
[1732116026022,2.2322,236.25,236.07,0.77692098]
[1732116026823,2.2322,236.25,236.08,2.14911131]
[1732116027124,2.2322,236.25,236.09,0.77692098]
[1732116027423,19.76474001,236.3,236.13,19.76474001]
[1732116027625,19.76474001,236.3,236.14,0.77692098]
[1732116028317,19.76474001,236.34,236.17,19.76474001]
[1732116028519,2.2322,236.37,236.18,4.4345]
[1732116028922,2.1136,236.31,236.19,2.2365]
[1732116030026,2.1133,236.35,236.21,19.76474001]
[1732116030422,2.1133,236.35,236.22,0.77656477]
[1732116030628,19.76474001,236.42,236.25,19.76474001]
[1732116031122,291.12808049,236.93,236.29,19.76474001]
[1732116031123,19.76474001,236.76,236.29,19.76474001]
[1732116031328,2.0809,236.51,236.33,19.76474001]
[1732116032024,46.57571238,236.64,236.33,19.76474001]
[1732116032228,2.112,236.5,236.33,19.76474001]
[1732116032922,2.0809,236.59,236.33,19.76474001]
[1732116033226,2.0809,236.59,236.3,6.5297]
[1732116033423,2.0809,236.59,236.36,19.76474001]
[1732116033730,19.76474001,236.56,236.36,19.76474001]
[1732116034126,2.0809,236.59,236.4,19.76474001]
[1732116034332,2.1115,236.55,236.4,19.76474001]
[1732116034624,2.0809,236.59,236.4,19.76474001]
[1732116034829,2.0809,236.59,236.41,2.08928132]
[1732116035223,2.0809,236.59,236.42,2.1181]
[1732116035224,2.1115,236.55,236.42,2.1181]
[1732116035420,2.0809,236.59,236.43,2.2216]
[1732116035421,19.76474001,236.56,236.43,2.2216]
[1732116035823,2.1118,236.51,236.43,2.2216]
[1732116036030,19.76474001,236.56,236.36,19.76474001]
[1732116036427,2.1121,236.48,236.36,19.76474001]
[1732116036628,19.76474001,236.56,236.36,19.76474001]
[1732116037230,19.76474001,236.56,236.4,19.76474001]
[1732116037631,2.1115,236.55,236.4,19.76474001]
[1732116038727,2.0809,236.59,236.4,19.76474001]
[1732116039325,2.1116,236.54,236.4,19.76474001]
[1732116039530,2.0809,236.59,236.4,19.76474001]
[1732116039830,19.76474001,236.56,236.33,19.76474001]
[1732116040337,2.1119,236.5,236.37,19.76474001]
[1732116040732,19.76474001,236.56,236.37,19.76474001]
[1732116040933,2.1119,236.5,236.37,19.76474001]
[1732116042133,19.76474001,236.56,236.37,19.76474001]
[1732116042334,2.1118,236.52,236.37,19.76474001]
[1732116042532,2.0809,236.59,236.41,19.76474001]
[1732116042737,2.1114,236.56,236.41,19.76474001]
[1732116042942,2.0809,236.59,236.42,2.2092]
[1732116043134,2.0809,236.59,236.42,4.4929]
[1732116043336,2.0809,236.59,236.43,2.2119]
[1732116043533,19.76474001,236.64,236.45,19.76474001]
[1732116043745,0.57904,236.66,236.49,19.76474001]
[1732116043951,2.1106,236.65,236.49,19.76474001]
[1732116044245,0.57904,236.66,236.49,19.76474001]
[1732116045548,19.76474001,236.65,236.45,19.76474001]
[1732116045744,19.76474001,236.61,236.43,2.2119]
[1732116045951,19.76474001,236.65,236.45,19.76474001]
[1732116046455,2.1114,236.56,236.45,19.76474001]
[1732116046647,19.76474001,236.61,236.43,2.2119]
[1732116047147,2.1114,236.56,236.43,2.2119]
[1732116047349,19.76474001,236.61,236.43,2.2119]